fUST/lending_fUST_20241108
["ID","MTS","AMOUNT","RATE_DAILY","PERIOD"]
[341667885,1731077448068,-153.0,0.00024319,2]
[341667886,1731077448077,-153.0,0.00024319,2]
[341667887,1731077448089,-153.0,0.00024319,2]
[341667888,1731077448098,-156.0,0.00024319,2]
[341667889,1731077448108,-156.0,0.00024319,2]
[341667890,1731077448117,-156.0,0.00024319,2]
[341667891,1731077448126,-156.0,0.00024319,2]
[341667892,1731077448135,-156.0,0.00024319,2]
[341667893,1731077448144,-156.0,0.00024319,2]
[341667894,1731077448154,-156.0,0.00024319,2]
[341667895,1731077448163,-156.0,0.00024319,2]
[341667896,1731077448173,-156.0,0.00024319,2]
[341667897,1731077448182,-156.0,0.00024319,2]
[341667898,1731077448192,-156.0,0.00024319,2]
[341667899,1731077448201,-156.0,0.00024319,2]
[341667900,1731077448211,-156.0,0.00024319,2]
[341667901,1731077448220,-156.0,0.00024319,2]
[341667902,1731077448229,-156.0,0.00024319,2]
[341667903,1731077448239,-178.0,0.00024319,2]
[341667904,1731077448248,-515.0,0.00024383,2]
[341667905,1731077448257,-500.0,0.00024383,2]
[341667906,1731077448267,-807.77,0.00024383,2]
[341667907,1731077448276,-929.64,0.00024383,2]
[341667908,1731077448286,-1569.71,0.00024383,2]
[341667909,1731077448295,-5079.6,0.00024383,2]
[341667910,1731077448304,-500.0,0.00024383,2]
[341667911,1731077448313,-4463.68,0.00024383,2]
[341667912,1731077448322,-679.98,0.00024383,2]
[341667913,1731077448332,-500.0,0.00024383,2]
[341667914,1731077448344,-500.0,0.00024383,2]
[341667915,1731077448353,-500.0,0.00024383,2]
[341667916,1731077448362,-735.5,0.00024383,2]
[341667917,1731077448371,-500.0,0.00024383,2]
[341667918,1731077448381,-1217.01,0.00024383,2]
[341667919,1731077448391,-438.7964261,0.00024383,2]
[341667920,1731077448399,-540.01,0.00024383,2]
[341667921,1731077448411,-514.14,0.00024383,2]
[341667922,1731077448420,-686.29,0.00024383,2]
[341667923,1731077448429,-914.67,0.00024383,2]
[341667924,1731077448439,-500.0,0.00024383,2]
[341667925,1731077448448,-150.112233,0.000244,7]
[341667926,1731077448457,-160.718059,0.00024482,2]
[341667927,1731077448467,-5893.82195277,0.00024558,2]
[341667928,1731077448476,-515.0,0.00024657,2]
[341667929,1731077448486,-500.0,0.00024657,2]
[341667930,1731077448495,-807.77,0.00024657,2]
[341667931,1731077448504,-929.64,0.00024657,2]
[341667932,1731077448513,-1569.71,0.00024657,2]
[341667933,1731077448523,-5079.6,0.00024657,2]
[341667934,1731077448532,-500.0,0.00024657,2]
[341667935,1731077448541,-4463.68,0.00024657,2]
[341667936,1731077448550,-679.98,0.00024657,2]
[341667937,1731077448559,-488.37336525,0.00024657,2]
[341667938,1731077448568,-500.0,0.00024657,2]
[341667939,1731077448578,-500.0,0.00024657,2]
[341667940,1731077448589,-735.5,0.00024657,2]
[341667941,1731077448603,-500.0,0.00024657,2]
[341667942,1731077448612,-1217.01,0.00024657,2]
[341667943,1731077448621,-540.01,0.00024657,2]
[341667944,1731077448631,-514.14,0.00024657,2]
[341667945,1731077448640,-686.29,0.00024657,2]
[341667946,1731077448650,-914.67,0.00024657,2]
[341667947,1731077448659,-500.0,0.00024657,2]
[341667948,1731077448669,-150.0,0.00024658,2]
[341667949,1731077448679,-660.0,0.00024658,2]
[341667950,1731077448689,-200.0,0.00024658,15]
[341667951,1731077448698,-1015.8939145,0.00024658,2]
[341667952,1731077448708,-500.0,0.00024658,2]
[341667953,1731077448717,-500.0,0.00024658,2]
[341667954,1731077448726,-500.0,0.00024658,2]
[341667955,1731077448735,-500.0,0.00024658,2]
[341667956,1731077448743,-500.0,0.00024658,2]
[341667957,1731077448752,-500.0,0.00024658,2]
[341667958,1731077448762,-500.0,0.00024658,2]
[341667959,1731077448771,-500.0,0.00024658,2]
[341667960,1731077448780,-500.0,0.00024658,2]
[341667961,1731077448789,-500.0,0.00024658,2]
[341667962,1731077448798,-500.0,0.00024658,2]
[341667963,1731077448807,-500.0,0.00024658,2]
[341667964,1731077448816,-500.0,0.00024658,2]
[341667965,1731077448825,-500.0,0.00024658,2]
[341667966,1731077448835,-500.0,0.00024658,2]
[341667967,1731077448847,-500.0,0.00024658,2]
[341667968,1731077448860,-500.0,0.00024658,2]
[341667969,1731077448874,-500.0,0.00024658,2]
[341667970,1731077448888,-500.0,0.00024658,2]
[341667971,1731077448901,-500.0,0.00024658,2]
[341667972,1731077448912,-500.0,0.00024658,2]
[341667973,1731077448924,-500.0,0.00024658,2]
[341667974,1731077448937,-500.0,0.00024658,2]
[341667975,1731077448949,-500.0,0.00024658,2]
[341667976,1731077448961,-500.0,0.00024658,2]
[341667977,1731077448974,-500.0,0.00024658,2]
[341667978,1731077448986,-500.0,0.00024658,2]
[341667979,1731077448998,-500.0,0.00024658,2]
[341667980,1731077449011,-500.0,0.00024658,2]
[341667981,1731077449024,-500.0,0.00024658,2]
[341667982,1731077449036,-500.0,0.00024658,2]
[341667983,1731077449048,-500.0,0.00024658,2]
[341667984,1731077449059,-500.0,0.00024658,2]
[341667985,1731077449072,-500.0,0.00024658,2]
[341667986,1731077449086,-500.0,0.00024658,2]
[341667987,1731077449098,-500.0,0.00024658,2]
[341667988,1731077449109,-152.22557521,0.00024658,2]
[341667989,1731077449120,-500.0,0.00024658,2]
[341667990,1731077449130,-500.0,0.00024658,2]
[341667991,1731077449143,-500.0,0.00024658,2]
[341667992,1731077449155,-500.0,0.00024658,2]
[341667993,1731077449168,-500.0,0.00024658,2]
[341667994,1731077449179,-500.0,0.00024658,2]
[341667995,1731077449193,-500.0,0.00024658,2]
[341667996,1731077449205,-500.0,0.00024658,2]
[341667997,1731077449219,-401.76389191,0.00024658,2]
[341667998,1731077449233,-500.0,0.00024658,2]
[341667999,1731077449246,-500.0,0.00024658,2]
[341668000,1731077449258,-500.0,0.00024658,2]
[341668001,1731077449268,-500.0,0.00024658,2]
[341668002,1731077449278,-500.0,0.00024658,2]
[341668003,1731077449288,-500.0,0.00024658,2]
[341668004,1731077449299,-500.0,0.00024658,2]
[341668005,1731077449312,-587.0,0.00024725,2]
[341668006,1731077449327,-150.112233,0.000248,7]
[341668007,1731077449341,-1906.57501983,0.000249,2]
[341668008,1731077449351,-515.0,0.00024931,2]
[341668009,1731077449363,-500.0,0.00024931,2]
[341668010,1731077449374,-807.77,0.00024931,2]
[341668011,1731077449386,-929.64,0.00024931,2]
[341668012,1731077449398,-1569.71,0.00024931,2]
[341668013,1731077449409,-5079.6,0.00024931,2]
[341668014,1731077449420,-500.0,0.00024931,2]
[341668015,1731077449430,-4463.68,0.00024931,2]
[341668016,1731077449442,-679.98,0.00024931,2]
[341668017,1731077449453,-500.0,0.00024931,2]
[341668018,1731077449464,-213.74497301,0.00024931,2]
[341668019,1731077449475,-735.5,0.00024931,2]
[341668020,1731077449486,-338.773788,0.00024931,7]
[341668021,1731077449497,-338.773788,0.00024931,7]
[341668022,1731077449508,-500.0,0.00024931,2]
[341668023,1731077449518,-1217.01,0.00024931,2]
[341668024,1731077449530,-540.01,0.00024931,2]
[341668025,1731077449540,-514.14,0.00024931,2]
[341668026,1731077449551,-686.29,0.00024931,2]
[341668027,1731077449562,-914.67,0.00024931,2]
[341668028,1731077449574,-250.82,0.00024931,2]
[341668029,1731077449584,-360.0,0.00024932,2]
[341668030,1731077449603,-1000.0,0.00024967,2]
[341668031,1731077449614,-500.0,0.00024973,2]
[341668032,1731077449624,-500.0,0.00024973,2]
[341668033,1731077449635,-500.0,0.00024973,2]
[341668034,1731077449646,-500.0,0.00024973,2]
[341668035,1731077449657,-500.0,0.00024973,2]
[341668036,1731077449669,-500.0,0.00024973,2]
[341668037,1731077449680,-130334.16096414,0.00025,2]
[341668038,1731077449691,-19055.22380285,0.00025,2]
[341668039,1731077449702,-11312.50296344,0.00025,2]
[341668040,1731077449712,-151.0,0.00025,7]
[341668041,1731077449723,-1813.79,0.00025,2]
[341668042,1731077449734,-151.0,0.00025,7]
[341668043,1731077449745,-360.0,0.00025,2]
[341668044,1731077449755,-151.0,0.00025,7]
[341668045,1731077449766,-151.0,0.00025,7]
[341668046,1731077449777,-280.599014,0.00025,7]
[341668047,1731077449789,-648.784247,0.00025,7]
[341668048,1731077449800,-290.433634,0.00025,7]
[341668049,1731077449812,-648.784247,0.00025,7]
[341668050,1731077449824,-290.433634,0.00025,7]
[341668051,1731077449836,-167.177367,0.00025,7]
[341668052,1731077449848,-167.177367,0.00025,7]
[341668053,1731077449859,-151.0,0.00025,7]
[341668054,1731077449870,-151.0,0.00025,7]
[341668055,1731077449883,-1129.62253,0.00025,7]
[341668056,1731077449894,-1129.62253,0.00025,7]
[341668057,1731077449905,-151.0,0.00025,7]
[341668058,1731077449916,-151.0,0.00025,7]
[341668059,1731077449926,-184.856771,0.00025,7]
[341668060,1731077449935,-743.884108,0.00025,7]
[341668061,1731077449944,-184.856771,0.00025,7]
[341668062,1731077449954,-743.884108,0.00025,7]
[341668063,1731077449964,-151.0,0.00025,7]
[341668064,1731077449973,-151.0,0.00025,7]
[341668065,1731077449982,-151.0,0.00025,7]
[341668066,1731077449992,-151.0,0.00025,7]
[341668067,1731077450001,-765.544699,0.00025,7]
[341668068,1731077450010,-346.570272,0.00025,7]
[341668069,1731077450143,-302.90913937,0.00025,2]
[341668070,1731077450156,-765.544699,0.00025,7]
[341668071,1731077450165,-346.570272,0.00025,7]
[341668072,1731077450175,-163.0,0.00025,2]
[341668073,1731077450185,-338.773788,0.00025,7]
[341668074,1731077450194,-338.773788,0.00025,7]
[341668075,1731077450203,-433.750555,0.00025,7]
[341668076,1731077450213,-433.750555,0.00025,7]
[341668077,1731077450221,-151.0,0.00025,7]
[341668078,1731077450230,-151.0,0.00025,7]
[341668079,1731077450240,-74378.26167178,0.0002509,2]
[341668080,1731077450250,-151.0,0.0002509,7]
[341668081,1731077450259,-151.0,0.0002509,7]
[341668082,1731077450267,-151.0,0.0002509,7]
[341668083,1731077450277,-210.49757,0.0002509,7]
[341668084,1731077450287,-210.49757,0.0002509,7]
[341668085,1731077450296,-151.0,0.0002509,7]
[341668086,1731077450305,-151.0,0.0002509,7]
[341668087,1731077450315,-151.0,0.0002509,7]
[341668088,1731077450325,-648.784247,0.0002509,7]
[341668089,1731077450334,-290.433634,0.0002509,7]
[341668090,1731077450345,-648.784247,0.0002509,7]
[341668091,1731077450354,-290.433634,0.0002509,7]
[341668092,1731077450363,-167.177367,0.0002509,7]
[341668093,1731077450372,-167.177367,0.0002509,7]
[341668094,1731077450382,-151.0,0.0002509,7]
[341668095,1731077450391,-151.0,0.0002509,7]
[341668096,1731077450401,-1129.62253,0.0002509,7]
[341668097,1731077450410,-1129.62253,0.0002509,7]
[341668098,1731077450419,-157.012918,0.0002509,7]
[341668099,1731077450428,-184.856771,0.0002509,7]
[341668100,1731077450437,-743.884108,0.0002509,7]
[341668101,1731077450446,-184.856771,0.0002509,7]
[341668102,1731077450455,-743.884108,0.0002509,7]
[341668104,1731077450464,-151.0,0.0002509,7]
[341668105,1731077450473,-151.0,0.0002509,7]
[341668106,1731077450482,-151.0,0.0002509,7]
[341668107,1731077450491,-151.0,0.0002509,7]
[341668108,1731077450501,-765.544699,0.0002509,7]
[341668109,1731077450510,-346.570272,0.0002509,7]
[341668110,1731077450519,-765.544699,0.0002509,7]
[341668111,1731077450529,-346.570272,0.0002509,7]
[341668112,1731077450539,-338.773788,0.0002509,7]
[341668113,1731077450548,-338.773788,0.0002509,7]
[341668114,1731077450557,-433.750555,0.0002509,7]
[341668115,1731077450566,-433.750555,0.0002509,7]
[341668116,1731077450575,-151.0,0.0002509,7]
[341668117,1731077450585,-151.0,0.0002509,7]
[341668118,1731077450601,-423.80048986,0.00025159,2]
[341668119,1731077450610,-150.0,0.00025196,2]
[341668120,1731077450619,-1132.0,0.00025196,2]
[341668121,1731077450629,-529.0,0.00025196,2]
[341668122,1731077450639,-2392.0,0.00025196,2]
[341668123,1731077450648,-1904.393,0.00025196,2]
[341668124,1731077450657,-150.0,0.000252,2]
[341668125,1731077450668,-150.112233,0.000252,20]
[341668126,1731077450677,-515.0,0.00025205,2]
[341668127,1731077450687,-500.0,0.00025205,2]
[341668128,1731077450695,-807.77,0.00025205,2]
[341668129,1731077450705,-929.64,0.00025205,2]
[341668130,1731077450714,-1569.71,0.00025205,2]
[341668131,1731077450723,-5079.6,0.00025205,2]
[341668132,1731077450733,-315.2840972,0.00025205,2]
[341668133,1731077450742,-4463.68,0.00025205,2]
[341668134,1731077450751,-679.98,0.00025205,2]
[341668135,1731077450760,-500.0,0.00025205,2]
[341668136,1731077450770,-735.5,0.00025205,2]
[341668137,1731077450779,-500.0,0.00025205,2]
[341668138,1731077450788,-1217.01,0.00025205,2]
[341668139,1731077450797,-540.01,0.00025205,2]
[341668140,1731077450807,-514.14,0.00025205,2]
[341668141,1731077450815,-686.29,0.00025205,2]
[341668142,1731077450824,-914.67,0.00025205,2]
[341668143,1731077450834,-360.0,0.00025205,2]
[341668144,1731077450844,-180.253029,0.0002521,2]
[341668145,1731077450853,-267.101369,0.0002521,2]
[341668146,1731077450862,-167.450544,0.0002521,2]
[341668147,1731077450872,-335.864,0.0002523,9]
[341668148,1731077450881,-302.90913937,0.0002525,2]
[341668149,1731077450891,-587.0,0.00025278,2]
[341668150,1731077450900,-150.01,0.00025319,2]
[341668151,1731077450909,-6188.62907977,0.00025319,2]
[341668152,1731077450918,-249.6506195,0.00025397,2]
[341668153,1731077450927,-515.0,0.00025479,2]
[341668154,1731077450936,-500.0,0.00025479,2]
[341668155,1731077450945,-807.77,0.00025479,2]
[341668156,1731077450954,-929.64,0.00025479,2]
[341668157,1731077450963,-1569.71,0.00025479,2]
[341668158,1731077450972,-5079.6,0.00025479,2]
[341668159,1731077450981,-4463.68,0.00025479,2]
[341668160,1731077450992,-679.98,0.00025479,2]
[341668161,1731077451002,-500.0,0.00025479,2]
[341668162,1731077451011,-735.5,0.00025479,2]
[341668163,1731077451020,-500.0,0.00025479,2]
[341668164,1731077451030,-1217.01,0.00025479,2]
[341668165,1731077451040,-540.01,0.00025479,2]
[341668166,1731077451050,-514.14,0.00025479,2]
[341668167,1731077451060,-686.29,0.00025479,2]
[341668168,1731077451071,-914.67,0.00025479,2]
[341668169,1731077451081,-360.0,0.00025479,2]
[341668170,1731077451092,-466.06149737,0.00025494,2]
[341668171,1731077451102,-150.112233,0.000255,14]
[341668172,1731077451112,-302.90913937,0.000255,2]
[341668173,1731077451121,-534.202738,0.00025525,2]
[341668174,1731077451131,-189.182345,0.00025525,2]
[341668175,1731077451140,-534.202738,0.00025525,2]
[341668176,1731077451149,-176.771016,0.00025525,2]
[341668177,1731077451158,-267.101369,0.00025525,2]
[341668178,1731077451168,-267.101369,0.00025525,2]
[341668179,1731077451177,-150.112233,0.000256,13]
[341668180,1731077451186,-150.112233,0.000256,19]
[341668181,1731077451196,-200.0,0.0002561,15]
[341668182,1731077451204,-1906.57501975,0.00025678,2]
[341668183,1731077451214,-302.90913937,0.0002575,2]
[341668184,1731077451223,-515.0,0.00025753,2]
[341668185,1731077451232,-500.0,0.00025753,2]
[341668186,1731077451241,-807.77,0.00025753,2]
[341668187,1731077451251,-929.64,0.00025753,2]
[341668188,1731077451261,-1569.71,0.00025753,2]
[341668189,1731077451270,-5079.6,0.00025753,2]
[341668190,1731077451280,-4463.68,0.00025753,2]
[341668191,1731077451289,-679.98,0.00025753,2]
[341668192,1731077451300,-500.0,0.00025753,2]
[341668193,1731077451309,-735.5,0.00025753,2]
[341668194,1731077451318,-500.0,0.00025753,2]
[341668195,1731077451328,-1217.01,0.00025753,2]
[341668196,1731077451340,-540.01,0.00025753,2]
[341668197,1731077451349,-514.14,0.00025753,2]
[341668198,1731077451360,-686.29,0.00025753,2]
[341668199,1731077451370,-914.67,0.00025753,2]
[341668200,1731077451380,-360.0,0.00025753,2]
[341668201,1731077451389,-174.805725,0.0002584,2]
[341668202,1731077451398,-180.253029,0.0002584,2]
[341668203,1731077451408,-534.202738,0.0002584,2]
[341668204,1731077451418,-189.182345,0.0002584,2]
[341668205,1731077451427,-534.202738,0.0002584,2]
[341668206,1731077451436,-176.771016,0.0002584,2]
[341668208,1731077451446,-267.101369,0.0002584,2]
[341668209,1731077451455,-267.101369,0.0002584,2]
[341668210,1731077451464,-360.0,0.0002589,2]
[341668211,1731077451473,-164.0,0.0002589,2]
[341668212,1731077451483,-151.0,0.00025899,4]
[341668213,1731077451492,-150.112233,0.00026,20]
[341668214,1731077451502,-302.90913937,0.00026,2]
[341668215,1731077451511,-160.775,0.0002601,2]
[341668216,1731077451521,-515.0,0.00026027,2]
[341668217,1731077451530,-500.0,0.00026027,2]
[341668218,1731077451540,-807.77,0.00026027,2]
[341668219,1731077451550,-929.64,0.00026027,2]
[341668220,1731077451560,-1569.71,0.00026027,2]
[341668221,1731077451569,-5079.6,0.00026027,2]
[341668222,1731077451579,-4463.68,0.00026027,2]
[341668223,1731077451590,-679.98,0.00026027,2]
[341668224,1731077451603,-500.0,0.00026027,2]
[341668225,1731077451612,-735.5,0.00026027,2]
[341668226,1731077451622,-338.773788,0.00026027,7]
[341668227,1731077451632,-338.773788,0.00026027,7]
[341668228,1731077451642,-500.0,0.00026027,2]
[341668229,1731077451652,-1217.01,0.00026027,2]
[341668230,1731077451662,-540.01,0.00026027,2]
[341668231,1731077451674,-514.14,0.00026027,2]
[341668232,1731077451683,-686.29,0.00026027,2]
[341668233,1731077451693,-914.67,0.00026027,2]
[341668234,1731077451702,-165528.03047562,0.00026038,2]
[341668235,1731077451711,-151.0,0.00026038,7]
[341668236,1731077451721,-151.0,0.00026038,7]
[341668237,1731077451731,-151.0,0.00026038,7]
[341668238,1731077451740,-210.49757,0.00026038,7]
[341668239,1731077451749,-210.49757,0.00026038,7]
[341668241,1731077451758,-151.0,0.00026038,7]
[341668242,1731077451767,-151.0,0.00026038,7]
[341668243,1731077451776,-151.0,0.00026038,7]
[341668244,1731077451786,-648.784247,0.00026038,7]
[341668246,1731077451795,-290.433634,0.00026038,7]
[341668247,1731077451805,-648.784247,0.00026038,7]
[341668248,1731077451814,-290.433634,0.00026038,7]
[341668250,1731077451823,-167.177367,0.00026038,7]
[341668251,1731077451832,-167.177367,0.00026038,7]
[341668252,1731077451843,-152.707085,0.00026038,7]
[341668253,1731077451852,-151.0,0.00026038,7]
[341668254,1731077451862,-1129.62253,0.00026038,7]
[341668255,1731077451871,-1129.62253,0.00026038,7]
[341668256,1731077451880,-184.856771,0.00026038,7]
[341668257,1731077451889,-743.884108,0.00026038,7]
[341668258,1731077451898,-184.856771,0.00026038,7]
[341668259,1731077451907,-743.884108,0.00026038,7]
[341668260,1731077451917,-151.0,0.00026038,7]
[341668261,1731077451926,-151.0,0.00026038,7]
[341668262,1731077451936,-151.0,0.00026038,7]
[341668263,1731077451945,-151.0,0.00026038,7]
[341668264,1731077451955,-765.544699,0.00026038,7]
[341668265,1731077451964,-346.570272,0.00026038,7]
[341668266,1731077451973,-765.544699,0.00026038,7]
[341668267,1731077451983,-346.570272,0.00026038,7]
[341668268,1731077451992,-338.773788,0.00026038,7]
[341668269,1731077452001,-338.773788,0.00026038,7]
[341668270,1731077452011,-433.750555,0.00026038,7]
[341668271,1731077452020,-433.750555,0.00026038,7]
[341668272,1731077452029,-151.0,0.00026038,7]
[341668273,1731077452038,-151.0,0.00026038,7]
[341668274,1731077452047,-150.112233,0.000261,19]
[341668275,1731077452058,-150.112233,0.000261,19]
[341668276,1731077452067,-534.202738,0.00026155,2]
[341668277,1731077452077,-189.182345,0.00026155,2]
[341668278,1731077452087,-534.202738,0.00026155,2]
[341668279,1731077452098,-176.771016,0.00026155,2]
[341668280,1731077452108,-267.101369,0.00026155,2]
[341668281,1731077452117,-267.101369,0.00026155,2]
[341668282,1731077452126,-3200.0,0.00026179,2]
[341668283,1731077452135,-1500.0,0.0002621,2]
[341668284,1731077452145,-1500.0,0.0002621,2]
[341668285,1731077452154,-454.36370906,0.0002625,4]
[341668286,1731077452164,-150.112234,0.000263,15]
[341668287,1731077452174,-515.0,0.00026301,2]
[341668288,1731077452184,-295.0876891,0.00026301,2]
[341668289,1731077452194,-807.77,0.00026301,2]
[341668290,1731077452203,-929.64,0.00026301,2]
[341668291,1731077452212,-1569.71,0.00026301,2]
[341668292,1731077452221,-5079.6,0.00026301,2]
[341668293,1731077452230,-4463.68,0.00026301,2]
[341668294,1731077452240,-679.98,0.00026301,2]
[341668295,1731077452249,-500.0,0.00026301,2]
[341668296,1731077452259,-735.5,0.00026301,2]
[341668297,1731077452268,-500.0,0.00026301,2]
[341668298,1731077452278,-1217.01,0.00026301,2]
[341668299,1731077452288,-540.01,0.00026301,2]
[341668300,1731077452297,-514.14,0.00026301,2]
[341668301,1731077452306,-686.29,0.00026301,2]
[341668302,1731077452316,-914.67,0.00026301,2]
[341668303,1731077452325,-791.44986977,0.00026342,2]
[341668304,1731077452334,-1000.0,0.00026342,2]
[341668305,1731077452347,-1000.0,0.00026342,2]
[341668306,1731077452357,-1000.0,0.00026342,2]
[341668307,1731077452367,-1000.0,0.00026342,2]
[341668308,1731077452375,-1000.0,0.00026342,2]
[341668309,1731077452384,-151.0,0.00026442,4]
[341668310,1731077452394,-1906.57501975,0.00026456,2]
[341668311,1731077452403,-174.805725,0.00026471,2]
[341668313,1731077452412,-180.253029,0.00026471,2]
[341668314,1731077452421,-534.202738,0.00026471,2]
[341668315,1731077452430,-189.182345,0.00026471,2]
[341668317,1731077452439,-534.202738,0.00026471,2]
[341668318,1731077452449,-176.771016,0.00026471,2]
[341668320,1731077452458,-267.101369,0.00026471,2]
[341668321,1731077452467,-267.101369,0.00026471,2]
[341668322,1731077452476,-7458.94652043,0.0002649,2]
[341668324,1731077452486,-150.112233,0.000265,10]
[341668325,1731077452495,-150.112233,0.000265,16]
[341668326,1731077452503,-454.36370906,0.000265,4]
[341668328,1731077452512,-515.0,0.00026575,2]
[341668329,1731077452522,-807.77,0.00026575,2]
[341668331,1731077452531,-929.64,0.00026575,2]
[341668332,1731077452541,-1569.71,0.00026575,2]
[341668333,1731077452550,-5079.6,0.00026575,2]
[341668334,1731077452559,-4463.68,0.00026575,2]
[341668335,1731077452569,-679.98,0.00026575,2]
[341668336,1731077452578,-500.0,0.00026575,2]
[341668337,1731077452587,-735.5,0.00026575,2]
[341668339,1731077452603,-594.91557927,0.00026575,2]
[341668340,1731077452612,-1217.01,0.00026575,2]
[341668342,1731077452621,-540.01,0.00026575,2]
[341668343,1731077452631,-514.14,0.00026575,2]
[341668344,1731077452640,-686.29,0.00026575,2]
[341668345,1731077452649,-914.67,0.00026575,2]
[341668346,1731077452659,-150.112233,0.000266,19]
[341668347,1731077452668,-454.36370906,0.0002675,4]
[341668348,1731077452679,-465.05307487,0.00026769,2]
[341668349,1731077452689,-515.0,0.00026849,2]
[341668350,1731077452698,-807.77,0.00026849,2]
[341668351,1731077452707,-929.64,0.00026849,2]
[341668352,1731077452717,-1569.71,0.00026849,2]
[341668353,1731077452727,-5079.6,0.00026849,2]
[341668354,1731077452736,-600.0,0.00026849,2]
[341668355,1731077452746,-4463.68,0.00026849,2]
[341668356,1731077452755,-679.98,0.00026849,2]
[341668357,1731077452765,-616.83915339,0.00026849,2]
[341668358,1731077452774,-735.5,0.00026849,2]
[341668359,1731077452784,-1217.01,0.00026849,2]
[341668360,1731077452794,-540.01,0.00026849,2]
[341668361,1731077452803,-514.14,0.00026849,2]
[341668362,1731077452812,-686.29,0.00026849,2]
[341668363,1731077452914,-914.67,0.00026849,2]
[341668364,1731077452925,-823.0,0.00026898,2]
[341668365,1731077452934,-513.91,0.000269,14]
[341668366,1731077452943,-506.8976225,0.00026973,2]
[341668367,1731077452953,-500.0,0.00026973,2]
[341668368,1731077452963,-151.0,0.00026985,4]
[341668370,1731077452972,-145062.76772648,0.00027,2]
[341668373,1731077453062,-52026.7644917,0.00027,2]
[341668388,1731077550815,165.127265,0.00013973,2]
[341668389,1731077580862,5688.99,0.00032002,30]
[341668393,1731077636764,3299.88,0.00032002,30]
[341668395,1731077648296,706.4,0.00027,90]
[341668399,1731077777268,694.44444444,0.00020843,2]
[341668400,1731077862938,158.9958735,0.00020711,2]
[341668403,1731078145389,496.144435,0.00020838,2]
[341668404,1731078203300,14922.115846,0.00020797,2]
[341668405,1731078259980,164.029078,0.00013973,2]
[341668407,1731078341561,222.369877,0.00020788,2]
[341668408,1731078346712,250.0,0.00020811,2]
[341668409,1731078389058,694.44444444,0.00020843,2]
[341668440,1731078632203,-211.075874,0.00020858,2]
[341668442,1731078632214,-681.60953098,0.00021009,2]
[341668539,1731078638294,-3116.95012542,0.00021009,2]
[341668540,1731078638304,-256.4783503,0.00021019,2]
[341668541,1731078638313,-496.144435,0.00021523,2]
[341668542,1731078638323,-226.34855684,0.00021717,2]
[341668543,1731078638332,-226.34855683,0.00021767,2]
[341668544,1731078638342,-300.0,0.00021816,2]
[341668545,1731078638351,-300.0,0.00021816,2]
[341668546,1731078638360,-226.34855683,0.00021817,2]
[341668548,1731078638369,-3085.49169544,0.00021817,2]
[341668549,1731078638381,-362.57503118,0.00021817,2]
[341668550,1731078638391,-500.0,0.00021916,2]
[341668551,1731078638399,-505.44033381,0.00021916,2]
[341668552,1731078638409,-500.0,0.00021916,2]